[Event "*** SCC Grand Prix: Titled Tuesday Blitz"]
[Site "Chess.com"]
[Date "2020.09.29"]
[Round "6"]
[White "pirulillo"]
[Black "Forantes"]
[Result "1/2-1/2"]
[WhiteElo "2232"]
[BlackElo "2369"]
[TimeControl "180+1"]
[EndTime "11:06:03 PDT"]
[Termination "Game drawn by repetition"]

1. e4 {[%clk 0:03:00.9]} 1... c5 {[%clk 0:02:59.2]} 2. Nf3 {[%clk 0:02:44.6]}
2... Nc6 {[%clk 0:02:59]} 3. Bb5 {[%clk 0:02:42.6]} 3... a6 {[%clk 0:02:59]} 4.
Bxc6 {[%clk 0:02:42.3]} 4... dxc6 {[%clk 0:02:59.9]} 5. d3 {[%clk 0:02:42]} 5...
Qc7 {[%clk 0:02:59.4]} 6. O-O {[%clk 0:02:40.2]} 6... e5 {[%clk 0:02:59.4]} 7.
h3 {[%clk 0:02:39.6]} 7... Bd6 {[%clk 0:02:59.2]} 8. a4 {[%clk 0:02:23.3]} 8...
a5 {[%clk 0:02:58.9]} 9. b3 {[%clk 0:02:22.5]} 9... Ne7 {[%clk 0:02:58.6]} 10.
Bb2 {[%clk 0:02:17.9]} 10... Ng6 {[%clk 0:02:56.5]} 11. Nbd2 {[%clk 0:02:12.3]}
11... f6 {[%clk 0:02:49.6]} 12. Nc4 {[%clk 0:02:09.2]} 12... Be6 {[%clk
0:02:49.5]} 13. Kh2 {[%clk 0:01:52.4]} 13... Be7 {[%clk 0:02:48.2]} 14. g3
{[%clk 0:01:44.4]} 14... O-O {[%clk 0:02:45.5]} 15. Ng1 {[%clk 0:01:42.2]} 15...
Rad8 {[%clk 0:02:42.9]} 16. Ne3 {[%clk 0:01:40.6]} 16... b6 {[%clk 0:02:18.9]}
17. Ne2 {[%clk 0:01:21.8]} 17... Qd7 {[%clk 0:02:10.8]} 18. g4 {[%clk
0:01:11.7]} 18... Bd6 {[%clk 0:01:47.1]} 19. Nf5 {[%clk 0:01:00.7]} 19... Bc7
{[%clk 0:01:45.6]} 20. h4 {[%clk 0:00:52.9]} 20... b5 {[%clk 0:01:36.6]} 21. h5
{[%clk 0:00:47]} 21... Ne7 {[%clk 0:01:35.3]} 22. Neg3 {[%clk 0:00:42.1]} 22...
c4 {[%clk 0:01:31.7]} 23. dxc4 {[%clk 0:00:36.5]} 23... bxc4 {[%clk 0:01:29]}
24. Ba3 {[%clk 0:00:31.4]} 24... Bxf5 {[%clk 0:01:06.1]} 25. Nxf5 {[%clk
0:00:20.9]} 25... Nxf5 {[%clk 0:01:05.4]} 26. gxf5 {[%clk 0:00:21.8]} 26... Rf7
{[%clk 0:00:45.8]} 27. Qe2 {[%clk 0:00:19.7]} 27... cxb3 {[%clk 0:00:38.7]} 28.
Rfd1 {[%clk 0:00:16.9]} 28... Qc8 {[%clk 0:00:37.2]} 29. cxb3 {[%clk 0:00:16.9]}
29... Rd4 {[%clk 0:00:36.2]} 30. Bb2 {[%clk 0:00:16]} 30... Rb4 {[%clk
0:00:31.1]} 31. Ba3 {[%clk 0:00:14.1]} 31... Rxb3 {[%clk 0:00:30.3]} 32. Qc4
{[%clk 0:00:14.6]} 32... Rf3 {[%clk 0:00:16.2]} 33. Kg2 {[%clk 0:00:13.8]} 33...
Rf4 {[%clk 0:00:16.4]} 34. f3 {[%clk 0:00:13.4]} 34... Rh4 {[%clk 0:00:15.9]}
35. Rd3 {[%clk 0:00:12]} 35... Rxh5 {[%clk 0:00:15.5]} 36. Rad1 {[%clk
0:00:12.1]} 36... Rg5+ {[%clk 0:00:10.1]} 37. Kh3 {[%clk 0:00:11.2]} 37... Rh5+
{[%clk 0:00:10.2]} 38. Kg2 {[%clk 0:00:10.5]} 38... Rg5+ {[%clk 0:00:08.7]} 39.
Kf1 {[%clk 0:00:10.4]} 39... Bb6 {[%clk 0:00:07.8]} 40. Rd7 {[%clk 0:00:07.9]}
40... Rg1+ {[%clk 0:00:07.4]} 41. Ke2 {[%clk 0:00:08.2]} 41... Rg2+ {[%clk
0:00:07.7]} 42. Kf1 {[%clk 0:00:08.3]} 42... Rg1+ {[%clk 0:00:05.1]} 43. Ke2
{[%clk 0:00:08.1]} 43... Rg2+ {[%clk 0:00:04.9]} 44. Kf1 {[%clk 0:00:07.7]}
44... Rg1+ {[%clk 0:00:04.9]} 1/2-1/2

[Event "*** SCC Grand Prix: Titled Tuesday Blitz"]
[Site "Chess.com"]
[Date "2020.09.29"]
[Round "6"]
[White "kreonx"]
[Black "chessmaGIA"]
[Result "1-0"]
[WhiteElo "2358"]
[BlackElo "1666"]
[TimeControl "180+1"]
[EndTime "11:06:03 PDT"]
[Termination "kreonx won by resignation"]

1. e4 {[%clk 0:03:00.9]} 1... e5 {[%clk 0:02:53.8]} 2. Nc3 {[%clk 0:02:57.5]}
2... Nf6 {[%clk 0:02:52.3]} 3. g3 {[%clk 0:02:57.5]} 3... d5 {[%clk 0:02:49.1]}
4. exd5 {[%clk 0:02:58.4]} 4... Nxd5 {[%clk 0:02:49.6]} 5. Bg2 {[%clk 0:02:59]}
5... Be6 {[%clk 0:02:48.4]} 6. Nf3 {[%clk 0:02:51.3]} 6... Nc6 {[%clk
0:02:47.9]} 7. O-O {[%clk 0:02:49.2]} 7... Be7 {[%clk 0:02:47.6]} 8. Re1 {[%clk
0:02:48.9]} 8... Bf6 {[%clk 0:02:46.4]} 9. d4 {[%clk 0:02:37.1]} 9... exd4
{[%clk 0:02:44.4]} 10. Nxd5 {[%clk 0:02:26.9]} 10... Qxd5 {[%clk 0:02:39.5]} 11.
Ne5 {[%clk 0:02:22.6]} 11... Qd6 {[%clk 0:02:33.6]} 12. Nxc6 {[%clk 0:02:19.2]}
12... bxc6 {[%clk 0:02:34]} 13. Bf4 {[%clk 0:02:16.3]} 13... Qd7 {[%clk
0:02:27.2]} 14. Qf3 {[%clk 0:02:11.8]} 14... O-O {[%clk 0:02:22.2]} 15. Qxc6
{[%clk 0:02:11.3]} 15... Qxc6 {[%clk 0:02:19.3]} 16. Bxc6 {[%clk 0:02:10.4]}
16... Rab8 {[%clk 0:02:18.9]} 17. b3 {[%clk 0:01:43.1]} 17... d3 {[%clk
0:02:16.8]} 18. Rac1 {[%clk 0:01:18.9]} 18... Bc3 {[%clk 0:01:57]} 19. cxd3
{[%clk 0:00:58]} 19... Bxe1 {[%clk 0:01:55.5]} 20. Rxe1 {[%clk 0:00:58.9]} 20...
Rb6 {[%clk 0:01:53.1]} 21. Be4 {[%clk 0:00:51.2]} 21... Ra6 {[%clk 0:01:52.3]}
22. Re2 {[%clk 0:00:47.3]} 22... c6 {[%clk 0:01:46.9]} 23. d4 {[%clk 0:00:37.4]}
23... Bd5 {[%clk 0:01:44.7]} 24. Bd3 {[%clk 0:00:31.6]} 24... Rb6 {[%clk
0:01:34.9]} 25. Bd6 {[%clk 0:00:31.3]} 25... Rc8 {[%clk 0:01:28.9]} 26. Bf5
{[%clk 0:00:29.5]} 26... Ra8 {[%clk 0:01:24.4]} 27. Re7 {[%clk 0:00:28.7]} 27...
g6 {[%clk 0:01:21]} 28. Bd3 {[%clk 0:00:23.8]} 28... Be6 {[%clk 0:01:19]} 29.
Bc5 {[%clk 0:00:23]} 29... Rbb8 {[%clk 0:01:12.5]} 30. Ba6 {[%clk 0:00:20.8]}
30... Rd8 {[%clk 0:01:10.2]} 31. Bb7 {[%clk 0:00:19.5]} 31... Rab8 {[%clk
0:01:05.4]} 32. Bxc6 {[%clk 0:00:19.9]} 32... Bd5 {[%clk 0:00:57.9]} 33. Bxd5
{[%clk 0:00:18.7]} 33... Rxd5 {[%clk 0:00:58.8]} 34. Rxa7 {[%clk 0:00:19.2]}
34... Kg7 {[%clk 0:00:56.2]} 35. Kg2 {[%clk 0:00:19.2]} 35... Kf6 {[%clk
0:00:56]} 36. b4 {[%clk 0:00:19.4]} 36... Rb5 {[%clk 0:00:53.1]} 37. a4 {[%clk
0:00:18.5]} 37... Rb8 {[%clk 0:00:51.6]} 38. b5 {[%clk 0:00:18.4]} 38... Ke6
{[%clk 0:00:49.2]} 39. b6 {[%clk 0:00:16.5]} 39... h5 {[%clk 0:00:46.9]} 40. h4
{[%clk 0:00:15.6]} 40... f5 {[%clk 0:00:45.4]} 41. a5 {[%clk 0:00:13.5]} 41...
Rdd8 {[%clk 0:00:40.8]} 42. a6 {[%clk 0:00:09.2]} 42... Kd5 {[%clk 0:00:38.3]}
43. Rg7 {[%clk 0:00:08.6]} 43... Kc6 {[%clk 0:00:30.1]} 44. Rc7+ {[%clk
0:00:08.1]} 44... Kb5 {[%clk 0:00:29.1]} 45. a7 {[%clk 0:00:08.1]} 45... Ra8
{[%clk 0:00:26.8]} 46. b7 {[%clk 0:00:07.9]} 1-0

[Event "*** SCC Grand Prix: Titled Tuesday Blitz"]
[Site "Chess.com"]
[Date "2020.09.29"]
[Round "6"]
[White "GalperinPlaton"]
[Black "Artem_Sadovsky"]
[Result "0-1"]
[WhiteElo "2744"]
[BlackElo "2529"]
[TimeControl "180+1"]
[EndTime "11:06:04 PDT"]
[Termination "Artem_Sadovsky won by checkmate"]

1. h4 {[%clk 0:02:59.6]} 1... d5 {[%clk 0:02:57]} 2. d4 {[%clk 0:02:58.9]} 2...
c5 {[%clk 0:02:55.8]} 3. e3 {[%clk 0:02:57.9]} 3... Nc6 {[%clk 0:02:54.7]} 4.
Bb5 {[%clk 0:02:53.6]} 4... Bf5 {[%clk 0:02:52]} 5. dxc5 {[%clk 0:02:52.7]} 5...
e5 {[%clk 0:02:48.7]} 6. b4 {[%clk 0:02:52.8]} 6... a5 {[%clk 0:02:42.5]} 7. c3
{[%clk 0:02:51.3]} 7... Nf6 {[%clk 0:02:19.1]} 8. Nf3 {[%clk 0:02:50.6]} 8...
Qc7 {[%clk 0:02:10.3]} 9. h5 {[%clk 0:02:46.2]} 9... h6 {[%clk 0:02:01.9]} 10.
Nbd2 {[%clk 0:02:40.6]} 10... Be7 {[%clk 0:01:54.8]} 11. Nb3 {[%clk 0:02:35.8]}
11... axb4 {[%clk 0:01:47.6]} 12. cxb4 {[%clk 0:02:33.5]} 12... O-O {[%clk
0:01:44.5]} 13. a3 {[%clk 0:02:32.9]} 13... Bg4 {[%clk 0:01:36]} 14. Be2 {[%clk
0:02:28.2]} 14... e4 {[%clk 0:01:29.1]} 15. Nfd4 {[%clk 0:02:24.7]} 15... Ne5
{[%clk 0:01:27.8]} 16. f3 {[%clk 0:02:21.8]} 16... exf3 {[%clk 0:01:23.5]} 17.
gxf3 {[%clk 0:02:22.7]} 17... Bxh5 {[%clk 0:01:22.3]} 18. Nf5 {[%clk 0:02:08.9]}
18... Bg6 {[%clk 0:01:21.4]} 19. Nxe7+ {[%clk 0:02:05.8]} 19... Qxe7 {[%clk
0:01:21.1]} 20. Kf2 {[%clk 0:01:59.9]} 20... Nc4 {[%clk 0:01:12.9]} 21. Qd4
{[%clk 0:01:55.3]} 21... Rfe8 {[%clk 0:01:11.4]} 22. Bxc4 {[%clk 0:01:44.6]}
22... dxc4 {[%clk 0:01:12.2]} 23. Qxc4 {[%clk 0:01:45.5]} 23... Rad8 {[%clk
0:01:11.9]} 24. Nd4 {[%clk 0:01:43.8]} 24... Nd5 {[%clk 0:01:11]} 25. Qb3 {[%clk
0:01:37.8]} 25... Qf6 {[%clk 0:00:56.4]} 26. Ra2 {[%clk 0:01:34.9]} 26... Nxe3
{[%clk 0:00:49.6]} 27. Bxe3 {[%clk 0:01:34.3]} 27... Rxd4 {[%clk 0:00:49.6]} 28.
Qc3 {[%clk 0:01:18.5]} 28... Rxe3 {[%clk 0:00:50]} 29. Qxe3 {[%clk 0:01:15.8]}
29... Rd3 {[%clk 0:00:50.1]} 30. Qe2 {[%clk 0:01:10]} 30... Qd4+ {[%clk
0:00:49.3]} 31. Kg2 {[%clk 0:01:10]} 31... Re3 {[%clk 0:00:42.6]} 32. Qf2 {[%clk
0:01:04.9]} 32... Be4 {[%clk 0:00:21.9]} 33. Rh3 {[%clk 0:01:04.4]} 33... Bc6
{[%clk 0:00:16.1]} 34. Rg3 {[%clk 0:01:00.2]} 34... Qf4 {[%clk 0:00:11.8]} 35.
Re2 {[%clk 0:00:48]} 35... Rxa3 {[%clk 0:00:11.5]} 36. Kg1 {[%clk 0:00:32.1]}
36... h5 {[%clk 0:00:09.8]} 37. Qg2 {[%clk 0:00:29.5]} 37... g6 {[%clk
0:00:08.4]} 38. Re6 {[%clk 0:00:21.9]} 38... Ra1+ {[%clk 0:00:08.2]} 39. Kf2
{[%clk 0:00:19.8]} 39... Qd4+ {[%clk 0:00:06.1]} 40. Re3 {[%clk 0:00:16.8]}
40... Ra2+ {[%clk 0:00:06.5]} 41. Ke1 {[%clk 0:00:17.4]} 41... Qxe3+ {[%clk
0:00:04.8]} 42. Qe2 {[%clk 0:00:16.6]} 42... Qxe2# {[%clk 0:00:04.7]} 0-1

[Event "*** SCC Grand Prix: Titled Tuesday Blitz"]
[Site "Chess.com"]
[Date "2020.09.29"]
[Round "6"]
[White "Meri-Arabidze"]
[Black "GM_LOADING"]
[Result "0-1"]
[WhiteElo "2688"]
[BlackElo "2511"]
[TimeControl "180+1"]
[EndTime "11:06:09 PDT"]
[Termination "GM_LOADING won on time"]

1. d4 {[%clk 0:03:00.9]} 1... Nf6 {[%clk 0:02:58.3]} 2. c4 {[%clk 0:03:00.9]}
2... e6 {[%clk 0:02:57]} 3. Nc3 {[%clk 0:03:01]} 3... Bb4 {[%clk 0:02:56.6]} 4.
Nf3 {[%clk 0:03:01.2]} 4... d6 {[%clk 0:02:47.2]} 5. e3 {[%clk 0:03:00.9]} 5...
O-O {[%clk 0:02:46.5]} 6. Bd2 {[%clk 0:03:00.8]} 6... b6 {[%clk 0:02:45.9]} 7.
Bd3 {[%clk 0:02:59]} 7... Bb7 {[%clk 0:02:46.4]} 8. O-O {[%clk 0:02:59]} 8...
Nbd7 {[%clk 0:02:45.7]} 9. a3 {[%clk 0:02:53]} 9... Bxc3 {[%clk 0:02:45.4]} 10.
Bxc3 {[%clk 0:02:53.9]} 10... Qe7 {[%clk 0:02:41.9]} 11. Nd2 {[%clk 0:02:39.9]}
11... e5 {[%clk 0:02:41]} 12. d5 {[%clk 0:02:40.1]} 12... a5 {[%clk 0:02:39.9]}
13. b4 {[%clk 0:02:39.4]} 13... axb4 {[%clk 0:02:35]} 14. axb4 {[%clk
0:02:40.3]} 14... c6 {[%clk 0:02:34.7]} 15. e4 {[%clk 0:02:38.7]} 15... g6
{[%clk 0:02:24.8]} 16. Qb3 {[%clk 0:02:33.3]} 16... Nh5 {[%clk 0:02:23.4]} 17.
g3 {[%clk 0:02:31.5]} 17... Qg5 {[%clk 0:02:18.1]} 18. Nf3 {[%clk 0:02:13.3]}
18... Qg4 {[%clk 0:02:16.6]} 19. Nh4 {[%clk 0:02:01.1]} 19... Nf4 {[%clk
0:02:08.2]} 20. Bd2 {[%clk 0:02:00.5]} 20... Ne2+ {[%clk 0:01:52.4]} 21. Bxe2
{[%clk 0:01:57.2]} 21... Qxe2 {[%clk 0:01:53.3]} 22. Bh6 {[%clk 0:01:50.3]}
22... Rfe8 {[%clk 0:01:50.1]} 23. Rae1 {[%clk 0:01:45]} 23... Qa2 {[%clk
0:01:50.1]} 24. Qxa2 {[%clk 0:01:19.2]} 24... Rxa2 {[%clk 0:01:51]} 25. dxc6
{[%clk 0:01:18.3]} 25... Bxc6 {[%clk 0:01:51.5]} 26. Rd1 {[%clk 0:01:19]} 26...
Re6 {[%clk 0:01:50.3]} 27. Rfe1 {[%clk 0:01:09.4]} 27... Rc2 {[%clk 0:01:38.5]}
28. Rc1 {[%clk 0:01:04.3]} 28... Rxc1 {[%clk 0:01:37.5]} 29. Bxc1 {[%clk
0:01:05.2]} 29... Re8 {[%clk 0:01:32.1]} 30. f3 {[%clk 0:00:56.9]} 30... Kf8
{[%clk 0:01:31]} 31. Rd1 {[%clk 0:00:56.6]} 31... Ke7 {[%clk 0:01:30.5]} 32. Ng2
{[%clk 0:00:56.2]} 32... Ra8 {[%clk 0:01:29.9]} 33. Ne3 {[%clk 0:00:56.3]} 33...
Ra4 {[%clk 0:01:22.2]} 34. Kf2 {[%clk 0:00:50.1]} 34... Ke6 {[%clk 0:01:14.9]}
35. Bd2 {[%clk 0:00:41.6]} 35... Ra2 {[%clk 0:01:14.6]} 36. Ke2 {[%clk
0:00:39.1]} 36... f5 {[%clk 0:01:12.6]} 37. exf5+ {[%clk 0:00:37.7]} 37... gxf5
{[%clk 0:01:13.2]} 38. g4 {[%clk 0:00:34.2]} 38... f4 {[%clk 0:01:02.3]} 39. Nf5
{[%clk 0:00:33.6]} 39... Nf6 {[%clk 0:00:58.6]} 40. h3 {[%clk 0:00:24.3]} 40...
Ra3 {[%clk 0:00:52.3]} 41. Bc1 {[%clk 0:00:20.6]} 41... Bxf3+ {[%clk 0:00:51.8]}
42. Kf2 {[%clk 0:00:19]} 42... Bxd1 {[%clk 0:00:50.5]} 43. Bxa3 {[%clk
0:00:19.6]} 43... Bb3 {[%clk 0:00:49]} 44. c5 {[%clk 0:00:18.8]} 44... bxc5
{[%clk 0:00:47.5]} 45. bxc5 {[%clk 0:00:19]} 45... dxc5 {[%clk 0:00:48.1]} 46.
Ng7+ {[%clk 0:00:13.4]} 46... Kd5 {[%clk 0:00:46.6]} 47. g5 {[%clk 0:00:12.9]}
47... Ne4+ {[%clk 0:00:46.8]} 48. Kf3 {[%clk 0:00:13.1]} 48... Bd1+ {[%clk
0:00:47]} 49. Kg2 {[%clk 0:00:12.5]} 49... Nxg5 {[%clk 0:00:46.5]} 50. h4 {[%clk
0:00:12.8]} 50... Ne4 {[%clk 0:00:44.6]} 51. Nf5 {[%clk 0:00:12.5]} 51... c4
{[%clk 0:00:42.6]} 52. Bc1 {[%clk 0:00:11.2]} 52... c3 {[%clk 0:00:41.2]} 53.
Ne7+ {[%clk 0:00:10.4]} 53... Kd4 {[%clk 0:00:40.5]} 54. Ng8 {[%clk 0:00:10.1]}
54... f3+ {[%clk 0:00:39.1]} 55. Kf1 {[%clk 0:00:09.6]} 55... Be2+ {[%clk
0:00:39]} 56. Ke1 {[%clk 0:00:09.8]} 56... Kd3 {[%clk 0:00:39.5]} 0-1

[Event "*** SCC Grand Prix: Titled Tuesday Blitz"]
[Site "Chess.com"]
[Date "2020.09.29"]
[Round "6"]
[White "gmpeter008"]
[Black "UCantHandleDenker"]
[Result "1-0"]
[WhiteElo "2403"]
[BlackElo "2561"]
[TimeControl "180+1"]
[EndTime "11:06:10 PDT"]
[Termination "gmpeter008 won by resignation"]

1. d4 {[%clk 0:03:00.9]} 1... Nf6 {[%clk 0:02:54.6]} 2. Nf3 {[%clk 0:02:59]}
2... g6 {[%clk 0:02:54.1]} 3. c4 {[%clk 0:02:57.4]} 3... Bg7 {[%clk 0:02:52.8]}
4. g3 {[%clk 0:02:57.7]} 4... O-O {[%clk 0:02:53.2]} 5. Bg2 {[%clk 0:02:58.1]}
5... c5 {[%clk 0:02:52.9]} 6. d5 {[%clk 0:02:57.8]} 6... d6 {[%clk 0:02:52.7]}
7. O-O {[%clk 0:02:57.5]} 7... e6 {[%clk 0:02:53.3]} 8. Nc3 {[%clk 0:02:57.5]}
8... exd5 {[%clk 0:02:53.8]} 9. cxd5 {[%clk 0:02:58.4]} 9... a6 {[%clk
0:02:53.9]} 10. a4 {[%clk 0:02:58.4]} 10... Re8 {[%clk 0:02:53.2]} 11. Nd2
{[%clk 0:02:58.4]} 11... Nbd7 {[%clk 0:02:51.5]} 12. Nc4 {[%clk 0:02:56.4]}
12... Nb6 {[%clk 0:02:50.1]} 13. b3 {[%clk 0:02:54.7]} 13... Rb8 {[%clk
0:02:42.5]} 14. Bb2 {[%clk 0:02:51.5]} 14... Bf5 {[%clk 0:02:30.5]} 15. a5
{[%clk 0:02:45.4]} 15... Nxc4 {[%clk 0:02:28]} 16. bxc4 {[%clk 0:02:46.3]} 16...
Ne4 {[%clk 0:01:56]} 17. Bxe4 {[%clk 0:01:55.9]} 17... Bxe4 {[%clk 0:01:54.1]}
18. Qd2 {[%clk 0:01:54.5]} 18... Bf5 {[%clk 0:01:49.5]} 19. Rfe1 {[%clk
0:01:36.6]} 19... b6 {[%clk 0:01:47.1]} 20. axb6 {[%clk 0:01:19]} 20... Qxb6
{[%clk 0:01:45.4]} 21. Na4 {[%clk 0:01:18.6]} 21... Qb4 {[%clk 0:01:45.4]} 22.
Bc3 {[%clk 0:00:40.6]} 22... Qxc4 {[%clk 0:01:30.2]} 23. Bxg7 {[%clk 0:00:38.4]}
23... Kxg7 {[%clk 0:01:27.4]} 24. Nc3 {[%clk 0:00:36.7]} 24... Qd4 {[%clk
0:01:16.7]} 25. Qc1 {[%clk 0:00:22.5]} 25... Bh3 {[%clk 0:01:04.2]} 26. Rd1
{[%clk 0:00:18.3]} 26... Qc4 {[%clk 0:00:55.2]} 27. Ra4 {[%clk 0:00:18]} 27...
Rb4 {[%clk 0:00:53.8]} 28. Qa1 {[%clk 0:00:17.1]} 28... Kg8 {[%clk 0:00:47.3]}
29. Rxa6 {[%clk 0:00:14.6]} 29... Rb3 {[%clk 0:00:42.4]} 30. Ra8 {[%clk
0:00:14.2]} 30... Rxa8 {[%clk 0:00:39.8]} 31. Qxa8+ {[%clk 0:00:15.1]} 31... Kg7
{[%clk 0:00:40.1]} 32. Rc1 {[%clk 0:00:15.5]} 32... Qd4 {[%clk 0:00:29.5]} 33.
e3 {[%clk 0:00:08.2]} 33... Qf6 {[%clk 0:00:23.9]} 34. Ne2 {[%clk 0:00:05.1]}
34... g5 {[%clk 0:00:19.3]} 35. Qa1 {[%clk 0:00:05.1]} 35... Qxa1 {[%clk
0:00:16.2]} 36. Rxa1 {[%clk 0:00:06]} 36... Rb2 {[%clk 0:00:16.4]} 37. Re1
{[%clk 0:00:06.5]} 37... Rc2 {[%clk 0:00:14.8]} 38. f3 {[%clk 0:00:06.4]} 38...
h5 {[%clk 0:00:13.7]} 39. Kf2 {[%clk 0:00:05.9]} 39... Bf5 {[%clk 0:00:14.2]}
40. e4 {[%clk 0:00:06.1]} 40... Bg6 {[%clk 0:00:14.6]} 41. Rc1 {[%clk
0:00:06.3]} 41... Rb2 {[%clk 0:00:13.8]} 42. Rc3 {[%clk 0:00:05.7]} 42... Ra2
{[%clk 0:00:13.5]} 43. h4 {[%clk 0:00:05.7]} 43... Rb2 {[%clk 0:00:14.3]} 44.
hxg5 {[%clk 0:00:05.5]} 44... f6 {[%clk 0:00:14.4]} 45. gxf6+ {[%clk 0:00:05.1]}
45... Kxf6 {[%clk 0:00:15.3]} 46. Ke3 {[%clk 0:00:06]} 46... Ra2 {[%clk
0:00:12.9]} 47. Nf4 {[%clk 0:00:06.9]} 47... Bf7 {[%clk 0:00:11.8]} 48. Rd3
{[%clk 0:00:07.8]} 48... Ra3 {[%clk 0:00:11.5]} 49. Rxa3 {[%clk 0:00:07.7]} 1-0

[Event "*** SCC Grand Prix: Titled Tuesday Blitz"]
[Site "Chess.com"]
[Date "2020.09.29"]
[Round "6"]
[White "Jospem"]
[Black "Pultis"]
[Result "0-1"]
[WhiteElo "2949"]
[BlackElo "2746"]
[TimeControl "180+1"]
[EndTime "11:06:12 PDT"]
[Termination "Pultis won by checkmate"]

1. e4 {[%clk 0:03:00.9]} 1... c6 {[%clk 0:02:59]} 2. d4 {[%clk 0:03:00.7]} 2...
d5 {[%clk 0:02:59.4]} 3. exd5 {[%clk 0:03:01.6]} 3... cxd5 {[%clk 0:02:59.6]} 4.
Bd3 {[%clk 0:03:02.1]} 4... Nc6 {[%clk 0:02:59.4]} 5. c3 {[%clk 0:03:02.6]} 5...
Nf6 {[%clk 0:02:58.8]} 6. h3 {[%clk 0:03:02]} 6... Qc7 {[%clk 0:02:57.8]} 7. Nf3
{[%clk 0:03:01.9]} 7... g6 {[%clk 0:02:56.1]} 8. O-O {[%clk 0:03:02.4]} 8... Bg7
{[%clk 0:02:56.6]} 9. Re1 {[%clk 0:03:00.9]} 9... O-O {[%clk 0:02:56.6]} 10.
Nbd2 {[%clk 0:03:00.3]} 10... Bf5 {[%clk 0:02:56.9]} 11. Nf1 {[%clk 0:02:46.4]}
11... e6 {[%clk 0:02:53.6]} 12. Be2 {[%clk 0:02:45.1]} 12... h5 {[%clk
0:02:53.8]} 13. Ne3 {[%clk 0:02:34.7]} 13... Ne4 {[%clk 0:02:53.1]} 14. g4
{[%clk 0:02:14.2]} 14... Kh8 {[%clk 0:02:27.8]} 15. gxf5 {[%clk 0:01:38.6]}
15... gxf5 {[%clk 0:02:28.7]} 16. Bd3 {[%clk 0:01:34.4]} 16... Rg8 {[%clk
0:02:26.2]} 17. Kf1 {[%clk 0:01:28.1]} 17... Ne7 {[%clk 0:02:13.2]} 18. Ne5
{[%clk 0:01:07.6]} 18... Bxe5 {[%clk 0:02:02]} 19. Qxh5+ {[%clk 0:01:04.2]}
19... Kg7 {[%clk 0:02:01.8]} 20. dxe5 {[%clk 0:00:35.4]} 20... Rh8 {[%clk
0:01:59.4]} 21. Qf3 {[%clk 0:00:28.7]} 21... Ng6 {[%clk 0:01:59.3]} 22. Nxd5
{[%clk 0:00:18.8]} 22... exd5 {[%clk 0:01:58.7]} 23. Qxf5 {[%clk 0:00:19.3]}
23... Rae8 {[%clk 0:01:59.3]} 24. Bxe4 {[%clk 0:00:18.9]} 24... Rxe5 {[%clk
0:01:56.8]} 25. Bf4 {[%clk 0:00:13.8]} 25... Rxf5 {[%clk 0:01:51.2]} 26. Bxc7
{[%clk 0:00:13.4]} 26... dxe4 {[%clk 0:01:51.6]} 27. Rxe4 {[%clk 0:00:12.7]}
27... Rxh3 {[%clk 0:01:51.7]} 28. Ke2 {[%clk 0:00:12.2]} 28... Rb5 {[%clk
0:01:42.2]} 29. Rb1 {[%clk 0:00:12.4]} 29... Rxc3 {[%clk 0:01:40.4]} 30. Bg3
{[%clk 0:00:06.9]} 30... Rc2+ {[%clk 0:01:39.5]} 31. Kd3 {[%clk 0:00:07.5]}
31... Rbxb2 {[%clk 0:01:39.8]} 32. Rxb2 {[%clk 0:00:08.4]} 32... Rxb2 {[%clk
0:01:40.7]} 33. a4 {[%clk 0:00:09.3]} 33... a6 {[%clk 0:01:30]} 34. Kc3 {[%clk
0:00:08.7]} 34... Rb1 {[%clk 0:01:29.8]} 35. Kc2 {[%clk 0:00:09.1]} 35... Rb6
{[%clk 0:01:29.4]} 36. Kc3 {[%clk 0:00:09.7]} 36... Rc6+ {[%clk 0:01:29.8]} 37.
Kb3 {[%clk 0:00:10]} 37... b6 {[%clk 0:01:26]} 38. Rd4 {[%clk 0:00:09.7]} 38...
Nf8 {[%clk 0:01:23.1]} 39. Rg4+ {[%clk 0:00:08.4]} 39... Rg6 {[%clk 0:01:17]}
40. Rc4 {[%clk 0:00:08.6]} 40... Nd7 {[%clk 0:01:12.4]} 41. Kb4 {[%clk
0:00:07.9]} 41... Re6 {[%clk 0:01:04.4]} 42. Rg4+ {[%clk 0:00:07.7]} 42... Kf8
{[%clk 0:01:03]} 43. Rd4 {[%clk 0:00:07.5]} 43... Ke7 {[%clk 0:00:59.7]} 44.
Bh4+ {[%clk 0:00:06.2]} 44... f6 {[%clk 0:00:59.8]} 45. Bg3 {[%clk 0:00:06.7]}
45... Rc6 {[%clk 0:00:54.3]} 46. Rh4 {[%clk 0:00:06.6]} 46... a5+ {[%clk
0:00:53.7]} 47. Kb5 {[%clk 0:00:05.5]} 47... Rc5+ {[%clk 0:00:53.9]} 48. Ka6
{[%clk 0:00:06]} 48... Rd5 {[%clk 0:00:54.1]} 49. Kb7 {[%clk 0:00:05.5]} 49...
Ke6 {[%clk 0:00:52.1]} 50. Re4+ {[%clk 0:00:03.1]} 50... Kf5 {[%clk 0:00:51.8]}
51. Re7 {[%clk 0:00:03.1]} 51... Rd4 {[%clk 0:00:51.5]} 52. Kc6 {[%clk
0:00:03.1]} 52... Ne5+ {[%clk 0:00:25.8]} 53. Kxb6 {[%clk 0:00:03.6]} 53... Rxa4
{[%clk 0:00:26.2]} 54. Kb5 {[%clk 0:00:04.2]} 54... Ra2 {[%clk 0:00:25.7]} 55.
Ra7 {[%clk 0:00:04.8]} 55... Rb2+ {[%clk 0:00:23.3]} 56. Ka4 {[%clk 0:00:04.2]}
56... Nc4 {[%clk 0:00:23]} 57. Rc7 {[%clk 0:00:04.4]} 57... Rb4# {[%clk
0:00:23.3]} 0-1